bitfinex/quotes_SOLUSD_20250901
["timestamp","ask_amount","ask_price","bid_price","bid_amount"]
[1756711902635,5.81930752,200.61,200.55,5.81930752]
[1756711902840,5.81930752,200.6,200.56,40.44]
[1756711903227,5.81930752,200.58,200.56,40.44]
[1756711903432,5.81930753,200.64,200.56,40.44]
[1756711903729,5.81930752,200.58,200.56,40.44]
[1756711904041,5.81930752,200.57,200.56,40.44]
[1756711904247,4.984634,200.62,200.56,40.44]
[1756711904416,5.81930752,200.58,200.56,40.44]
[1756711904621,4.984634,200.62,200.57,40.42]
[1756711904820,5.81930752,200.58,200.52,4.98703371]
[1756711905115,4.984634,200.62,200.53,40.42]
[1756711905329,5.81930752,200.54,200.53,40.42]
[1756711905844,5.81930752,200.55,200.53,45.40664091]
[1756711906139,5.81930752,200.58,200.53,45.40664091]
[1756711907535,5.81930752,200.58,200.53,57.87360345]
[1756711907744,1e-08,200.64,200.55,5.81930752]
[1756711907946,1e-08,200.64,200.56,40.4]
[1756711908252,5.81930752,200.62,200.56,40.4]
[1756711909221,1e-08,200.64,200.57,4.98579049]
[1756711909222,5.81930752,200.61,200.57,4.98579049]
[1756711911339,1e-08,200.64,200.57,17.45026673]
[1756711911548,5.81930752,200.63,200.57,23.26957425]
[1756711911729,1e-08,200.64,200.62,5.81930752]
[1756711911933,1e-08,200.64,200.63,46.21930752]
[1756711912128,1e-08,200.64,200.63,40.4]
[1756711912337,1e-08,200.64,200.63,46.21930752]
[1756711912534,1e-08,200.64,200.63,45.38429945]
[1756711912740,1e-08,200.64,200.63,90.94136255]
[1756711913732,1e-08,200.64,200.63,64.94136255]
[1756711914231,1e-08,200.64,200.63,4.98429945]
[1756711914637,1e-08,200.64,200.63,71.40429945]
[1756711915052,1e-08,200.64,200.63,45.42429945]
[1756711915053,5.81930753,200.64,200.63,45.42429945]
[1756711915234,5.81930753,200.64,200.63,40.44]
[1756711915235,1e-08,200.64,200.63,40.44]
[1756711915437,1e-08,200.64,200.63,45.42429945]
[1756711915633,1e-08,200.64,200.63,40.44]
[1756711915837,5.81930753,200.64,200.63,40.44]
[1756711916546,5.81930753,200.64,200.59,4.98504978]
[1756711916734,5.81930752,200.6,200.55,4.9862877]
[1756711916935,5.81930752,200.58,200.56,40.54]
[1756711917136,5.81930752,200.59,200.56,40.54]
[1756711917336,5.81930752,200.58,200.56,40.54]
[1756711917547,5.81930752,200.58,200.54,0.03]
[1756711917548,5.81930752,200.57,200.54,0.03]
[1756711917731,10.80345859,200.64,200.54,0.03]
[1756711917732,26.0,200.61,200.54,0.03]
[1756711917936,5.81930752,200.57,200.55,40.54]
[1756711918150,26.0,200.61,200.55,40.54]
[1756711918332,5.81930752,200.57,200.55,40.54]
[1756711918534,26.0,200.61,200.55,40.54]
[1756711918834,5.81930753,200.64,200.57,5.81930752]
[1756711919143,5.81930753,200.64,200.58,40.54]
[1756711919144,5.81930752,200.63,200.58,40.54]
[1756711919736,1e-08,200.64,200.58,40.54]
[1756711919737,5.81930752,200.62,200.58,40.54]
[1756711919935,1e-08,200.64,200.58,40.54]
[1756711920155,5.81930752,200.63,200.58,40.54]
[1756711920529,5.81930752,200.62,200.58,40.54]
[1756711920856,5.81930752,200.62,200.58,45.5253039]
[1756711921145,1e-08,200.64,200.59,5.81930752]
[1756711921350,5.81930752,200.61,200.54,26.03]
[1756711921554,1e-08,200.64,200.54,26.03]
[1756711921555,1e-08,200.64,200.54,5.01646879]
[1756711921849,5.81930752,200.57,200.55,40.64]
[1756711922049,5.81930752,200.56,200.54,0.03]
[1756711922254,5.81930752,200.56,200.55,40.66]
[1756711922455,5.81930752,200.57,200.55,40.66]
[1756711922626,5.81930752,200.56,200.54,0.03]
[1756711922831,0.14216157,200.63,200.55,40.66]
[1756711923030,5.81930752,200.57,200.55,40.66]
[1756711923265,5.81930752,200.56,200.55,40.66]
[1756711924236,5.81930752,200.56,200.54,0.03]
[1756711924443,5.81930752,200.55,200.54,0.03]
[1756711924743,5.81930752,200.55,200.54,40.71]
[1756711926037,26.0,200.59,200.54,40.71]
[1756711926241,5.81930752,200.55,200.54,40.71]
[1756711926756,5.81930752,200.57,200.54,40.71]
[1756711926964,5.81930752,200.58,200.54,40.71]
[1756711927459,5.81930752,200.55,200.54,0.03]
[1756711928056,5.81930752,200.55,200.54,40.69]
[1756711928270,26.0,200.61,200.54,40.69]
[1756711928432,4.9841062,200.64,200.54,45.67653108]
[1756711928629,5.81930752,200.59,200.54,45.67653108]
[1756711928836,5.81930752,200.58,200.54,5.01653108]
[1756711929162,5.81930752,200.55,200.54,0.03]
[1756711929341,26.0,200.61,200.54,40.71]
[1756711929550,10.80341831,200.64,200.54,45.69650534]
[1756711929763,5.81930752,200.59,200.54,45.69650534]
[1756711929959,13.59559401,200.63,200.54,0.03]
[1756711930140,10.80341831,200.64,200.54,0.03]
[1756711930141,5.81930752,200.55,200.54,0.03]
[1756711930550,26.0,200.61,200.54,0.03]
[1756711930870,5.81930752,200.55,200.54,5.0164947]
[1756711931162,5.81930752,200.55,200.54,0.03]
[1756711931554,5.81930752,200.55,200.54,40.93]
[1756711931857,0.14216157,200.61,200.54,40.91]
[1756711932044,5.81930752,200.55,200.54,40.91]
[1756711932663,5.81930752,200.55,200.54,40.93]
[1756711932877,26.0,200.61,200.54,45.91653393]
[1756711933045,5.81930752,200.55,200.54,45.91653393]
[1756711933241,26.0,200.61,200.54,45.91653393]
[1756711933444,5.81930752,200.55,200.54,45.91653393]
[1756711933860,5.81930752,200.55,200.54,40.93]
[1756711934043,4.98459912,200.62,200.54,45.91653635]
[1756711934241,5.81930752,200.55,200.54,40.93]
[1756711935164,4.98573096,200.58,200.54,40.91]
[1756711935343,5.81930752,200.55,200.54,40.91]
[1756711935880,5.81930752,200.55,200.54,40.93]
[1756711936070,26.0,200.62,200.54,40.93]
[1756711936380,5.81930752,200.55,200.54,40.93]
[1756711937155,5.81930752,200.55,200.54,45.91653635]
[1756711937657,4.98479637,200.61,200.54,40.93]
[1756711937862,5.81930752,200.55,200.54,0.03]
[1756711938063,5.81930752,200.55,200.54,40.93]
[1756711938453,5.81930752,200.55,200.54,45.91653635]
[1756711938958,5.81930752,200.55,200.54,40.93]
[1756711939767,10.80559522,200.55,200.54,0.03]
[1756711940079,10.80559522,200.55,200.54,40.89]
[1756711940241,4.98545934,200.59,200.54,40.89]
[1756711940445,5.81930752,200.55,200.54,40.89]
[1756711941061,4.98545934,200.59,200.54,40.89]
[1756711941377,5.81930752,200.55,200.54,40.89]
[1756711942068,26.0,200.6,200.54,40.89]
[1756711942273,30.98508697,200.6,200.54,40.89]
[1756711942571,5.81930752,200.55,200.54,45.87648036]
[1756711942867,5.81930752,200.55,200.54,40.89]
[1756711943371,26.0,200.6,200.54,45.87653635]
[1756711943562,5.81930752,200.55,200.54,45.87653635]
[1756711943874,26.0,200.6,200.54,45.87653635]
[1756711944051,5.81930752,200.55,200.54,40.89]
[1756711944246,5.81930752,200.55,200.54,0.03]
[1756711944561,5.81930752,200.55,200.54,40.83]
[1756711944962,26.0,200.57,200.54,40.83]
[1756711945366,10.80559522,200.55,200.54,40.83]
[1756711945753,30.9859499,200.57,200.54,40.83]
[1756711945957,5.81930752,200.55,200.54,40.83]
[1756711946578,5.81930752,200.55,200.54,0.03]
[1756711948070,10.80559522,200.55,200.54,0.03]
[1756711948276,10.80559522,200.55,200.51,33.79]
[1756711948476,5.81930752,200.52,200.51,33.79]
[1756711949476,11.63861504,200.52,200.49,0.03]
[1756711949674,5.81930752,200.5,200.49,0.03]
[1756711949879,5.81930752,200.5,200.4,4.9898011]
[1756711950179,5.81930752,200.41,200.37,4.99076708]
[1756711950382,26.0,200.49,200.38,40.78]
[1756711950383,1.80099313,200.4,200.38,40.78]
[1756711950584,5.81930752,200.39,200.38,40.78]
[1756711951164,5.81930752,200.39,200.38,45.77043036]
[1756711951396,5.81930752,200.39,200.38,40.78]
[1756711953186,26.0,200.46,200.38,40.78]
[1756711953187,26.0,200.46,200.38,45.77040667]
[1756711953385,138.68756714,200.5,200.38,58.2467017]
[1756711953592,5.81930752,200.44,200.38,64.06600922]
[1756711953769,5.81930752,200.47,200.41,5.81930752]
[1756711954113,5.81930752,200.46,200.42,40.8]
[1756711954759,5.81930752,200.47,200.42,40.8]
[1756711955166,5.81930752,200.47,200.43,17.46245571]
[1756711955799,5.81930752,200.48,200.43,17.46245571]
[1756711956089,5.81930752,200.49,200.43,17.46245571]
[1756711956396,24.78608893,200.48,200.43,5.81930752]
[1756711956565,24.47783841,200.41,200.31,15.03]
[1756711956892,8.42103239,200.49,200.4,5.81930752]
[1756711957091,8.42103239,200.49,200.42,5.81930752]
[1756711957295,5.81930752,200.49,200.42,5.81930752]
[1756711957675,26.0,200.55,200.42,5.81930752]
[1756711957992,26.0,200.55,200.43,12.47318265]
[1756711958194,5.81930752,200.48,200.43,12.47318265]
[1756711960292,26.0,200.55,200.43,12.47318265]
[1756711960697,5.81930752,200.52,200.45,5.81930752]
[1756711960897,28.60686006,200.58,200.45,5.81930752]
[1756711960898,5.81930752,200.51,200.46,40.7]
[1756711961693,5.81930752,200.51,200.47,4.98827754]
[1756711962771,5.81930752,200.5,200.47,4.98827754]
[1756711963094,5.81930752,200.5,200.48,40.68]
[1756711963295,5.81930752,200.51,200.48,40.68]
[1756711963795,5.81930752,200.52,200.49,4.98777993]
[1756711964671,26.0,200.58,200.49,4.98777993]
[1756711964888,5.81930752,200.51,200.49,4.98777993]
[1756711967077,5.81930752,200.5,200.45,5.819307]
[1756711967404,5.81930752,200.46,200.43,12.47306337]
[1756711967705,10.86637734,200.52,200.44,45.62902414]
[1756711967909,10.86637734,200.52,200.45,40.64]
[1756711968279,10.86637734,200.52,200.45,45.62871682]
[1756711968480,10.86637734,200.52,200.41,4.98977096]
[1756711968799,10.86637734,200.52,200.42,40.64]
[1756711968989,5.81930752,200.43,200.42,40.64]
[1756711969184,5.81930752,200.45,200.42,40.64]
[1756711969902,10.8663874,200.52,200.42,40.64]
[1756711970093,5.81930752,200.44,200.42,40.64]
[1756711970300,5.81930752,200.44,200.43,4.98927306]
[1756711970499,5.81930752,200.45,200.43,4.98927306]
[1756711972691,5.81930752,200.44,200.43,4.98927306]
[1756711974209,5.81930752,200.44,200.43,40.56]
[1756711974511,5.81930752,200.44,200.39,4.99026897]
[1756711974699,26.0,200.49,200.4,40.54]
[1756711975103,18.72578431,200.48,200.41,40.54]
[1756711975299,5.1301903,200.48,200.41,40.54]
[1756711975821,5.81930752,200.42,200.41,40.54]
[1756711976690,5.81930752,200.42,200.38,0.03]
[1756711976893,26.0,200.45,200.39,40.54]
[1756711977108,5.81930752,200.4,200.38,0.03]
[1756711977395,26.0,200.45,200.38,0.03]
[1756711977396,26.0,200.45,200.39,40.54]
[1756711978017,4.98902414,200.44,200.39,40.54]
[1756711978232,30.98881948,200.45,200.39,45.53024742]
[1756711978401,5.81930752,200.4,200.39,45.53024742]
[1756711978797,5.81930752,200.4,200.39,40.54]
[1756711980410,5.81930752,200.4,200.39,45.53026897]
[1756711980596,5.81930752,200.4,200.39,40.54]
[1756711981010,5.81930752,200.4,200.38,0.03]
[1756711981213,5.81930752,200.39,200.38,0.03]
[1756711982933,26.0,200.45,200.38,0.03]
[1756711983132,5.81930752,200.39,200.38,0.03]
[1756711984036,5.81930752,200.4,200.38,0.03]
[1756711984516,5.81930752,200.39,200.38,0.03]
[1756711984714,2.60767516,200.5,200.38,0.03]
[1756711984906,5.81930752,200.43,200.38,0.03]
[1756711985636,5.81930752,200.46,200.4,5.81930752]
[1756711985825,5.81930752,200.47,200.41,46.27930752]
[1756711986019,0.06,200.52,200.43,17.46245571]
[1756711986225,5.81930752,200.49,200.44,40.46]
[1756711986426,0.06,200.52,200.44,40.46]
[1756711986621,5.81930752,200.49,200.44,40.46]
[1756711986822,5.81930752,200.45,200.38,0.03]
[1756711987137,5.81930752,200.43,200.39,40.46]
[1756711987325,5.81930752,200.44,200.39,40.46]
[1756711987521,31.87930752,200.52,200.4,5.81930752]
[1756711987738,5.81930752,200.46,200.4,5.81930752]
[1756711987925,5.81930752,200.46,200.41,17.46419838]
[1756711988327,5.81930752,200.48,200.42,5.81930752]
[1756711988526,5.81930752,200.47,200.43,40.58]
[1756711988724,5.81930752,200.49,200.43,46.39930752]
[1756711988938,5.81930752,200.49,200.44,14.988384]
[1756711989433,5.81930752,200.5,200.44,20.80769152]
[1756711989815,5.81930752,200.49,200.44,14.988384]
[1756711990033,5.81930752,200.49,200.45,17.46071338]
[1756711990241,5.87930752,200.52,200.45,23.2800209]
[1756711990633,0.06,200.52,200.49,5.81930752]
[1756711990837,0.06,200.52,200.5,40.56]
[1756711991039,0.06,200.52,200.51,40.56]
[1756711992662,0.06,200.55,200.52,5.81930752]
[1756711992878,0.06,200.55,200.51,46.37930752]
[1756711993040,0.06,200.55,200.51,40.56]
[1756711993244,0.06,200.55,200.51,46.37930752]
[1756711994338,0.06,200.55,200.54,5.81930752]
[1756711994538,0.06,200.55,200.54,46.33930752]
[1756711995646,0.06,200.55,200.54,51.28990445]
[1756711996040,0.06,200.55,200.54,51.43206602]
[1756711996246,0.06,200.55,200.54,65.02766003]
[1756711997671,0.06,200.57,200.56,13.59559401]
[1756711997976,0.06,200.57,200.56,19.5570631]
[1756711998180,1e-08,200.64,200.61,31.81930752]
[1756711998486,1e-08,200.64,200.62,46.29930752]
[1756711998638,1e-08,200.64,200.63,5.81930752]
[1756711999478,1e-08,200.64,200.63,40.48]
[1756712000268,1e-08,200.64,200.63,40.52]
[1756712000440,5.81930753,200.64,200.58,26.0]
[1756712000642,1e-08,200.64,200.54,4.95059693]
[1756712000868,5.81930752,200.6,200.57,5.819307]
[1756712001054,5.81930752,200.6,200.58,34.98]
[1756712001766,1e-08,200.64,200.58,34.98]
[1756712001973,5.81930752,200.62,200.57,5.819307]
[1756712002154,5.81930752,200.62,200.59,40.54]
[1756712003161,5.81930752,200.61,200.6,40.5]
[1756712004144,5.81930752,200.63,200.6,40.5]
[1756712004346,5.81930753,200.64,200.6,40.5]
[1756712004750,1e-08,200.64,200.6,46.31930752]
[1756712004954,1e-08,200.64,200.62,5.81930752]
[1756712005176,1e-08,200.64,200.63,40.48]
[1756712005686,1e-08,200.64,200.61,11.63861452]
[1756712005687,1e-08,200.64,200.61,5.819307]
[1756712005862,5.81930752,200.62,200.56,0.03]
[1756712006068,1e-08,200.64,200.57,40.48]
[1756712006374,5.81930752,200.63,200.57,1.997054]
[1756712006682,5.81930752,200.63,200.58,40.52]
[1756712006879,5.81930752,200.6,200.57,1.997054]
[1756712007185,5.81930752,200.59,200.58,26.92]
[1756712007360,5.81930753,200.64,200.58,32.73930752]
[1756712008050,5.81930753,200.64,200.58,26.92]
[1756712008560,5.81930752,200.63,200.58,26.92]
[1756712008970,1e-08,200.64,200.58,26.92]
[1756712009168,5.81930753,200.64,200.58,26.92]
[1756712009370,5.81930753,200.64,200.59,4.983047]
[1756712009684,1e-08,200.64,200.59,4.983047]
[1756712009976,1e-08,200.64,200.6,5.81930752]
[1756712010365,1e-08,200.64,200.59,5.483047]
[1756712010366,1e-08,200.64,200.61,5.81930752]
[1756712011163,1e-08,200.64,200.6,5.81930752]
[1756712011549,1e-08,200.64,200.61,40.52]
[1756712011755,5.81930753,200.64,200.62,40.5]
[1756712011994,5.81930753,200.64,200.59,5.483047]
[1756712011995,1e-08,200.64,200.59,5.483047]
[1756712012300,5.81930753,200.64,200.63,40.5]
[1756712012586,1e-08,200.64,200.63,40.5]
[1756712012749,5.81930753,200.64,200.63,40.5]
[1756712012953,1e-08,200.64,200.63,40.5]
[1756712013964,5.81930753,200.64,200.63,40.5]
[1756712014477,1e-08,200.64,200.63,40.5]
[1756712014675,5.81930753,200.64,200.63,40.5]
[1756712014982,5.81930753,200.64,200.63,40.44]
[1756712015691,1e-08,200.64,200.63,40.44]
[1756712018087,1e-08,200.64,200.63,40.4]
[1756712018994,1e-08,200.64,200.63,46.21930752]
[1756712019162,1e-08,200.64,200.63,40.54216157]
[1756712019360,1e-08,200.64,200.63,59.9570631]
[1756712019757,1e-08,200.64,200.63,54.13775558]
[1756712019958,0.06,200.67,200.66,26.0]
[1756712020180,0.06,200.67,200.66,31.96146909]
[1756712020387,0.06,200.67,200.66,66.50216157]
[1756712020584,0.06,200.67,200.66,72.32146909]
[1756712021972,0.06,200.67,200.66,85.9170631]
[1756712022882,0.06,200.67,200.66,72.28146909]
[1756712023285,0.06,200.67,200.66,72.13930752]
[1756712024111,0.06,200.67,200.66,66.32]
[1756712024295,0.06,200.67,200.66,72.13930752]
[1756712025575,0.06,200.67,200.66,26.0]
[1756712025904,0.06,200.67,200.66,66.26]
[1756712026113,0.06,200.67,200.63,80.7]
[1756712026326,5.81930752,200.66,200.61,5.819308]
[1756712026470,5.81930752,200.66,200.62,40.26]
[1756712026671,0.06,200.67,200.62,40.26]
[1756712026672,5.87930752,200.67,200.62,40.26]
[1756712027105,0.06,200.67,200.62,40.26]
[1756712027311,0.06,200.67,200.62,46.07930752]
[1756712027799,0.06,200.67,200.66,5.81930752]
[1756712028002,0.06,200.67,200.66,46.11930752]
[1756712028196,0.06,200.67,200.66,40.3]
[1756712029807,0.06,200.67,200.66,46.11930752]
[1756712030196,0.06,200.67,200.66,40.3]
[1756712030722,0.06,200.67,200.66,40.26]
[1756712031124,0.06,200.67,200.66,51.89861552]
[1756712033613,0.06,200.67,200.66,65.6363711]
[1756712034291,0.01881869,200.67,200.66,65.6363711]
[1756712036101,217.7792726,200.84,200.7,0.14216157]
[1756712036300,5.81930752,200.77,200.71,5.81930752]
[1756712036499,5.81930752,200.77,200.72,40.22]
[1756712036696,5.81930752,200.77,200.71,5.81930752]
[1756712036917,5.81930752,200.77,200.73,40.22]
[1756712037305,26.0,200.84,200.73,40.22]
[1756712037504,26.0,200.84,200.73,46.03930752]
[1756712037804,4.9783468,200.87,200.73,46.03930752]
[1756712038127,5.81930752,200.81,200.75,5.81930752]
[1756712038431,5.81930752,200.79,200.76,40.2]
[1756712038797,5.81930752,200.79,200.77,40.2]
[1756712038998,36.89746465,200.88,200.77,40.2]
[1756712039318,5.81930752,200.79,200.77,40.2]
[1756712039509,4.9783442,200.87,200.7,0.14216157]
[1756712039710,4.9783442,200.87,200.73,31.81930752]
[1756712039906,5.81930752,200.79,200.74,40.2]
[1756712040515,0.1,200.88,200.8,26.0]
[1756712040701,5.81930752,200.87,200.77,0.14216157]
[1756712040906,5.81930752,200.82,200.78,32.08]
[1756712041195,5.81930752,200.84,200.78,43.71861452]
[1756712041411,5.81930752,200.84,200.78,37.899307]
[1756712041622,5.81930752,200.84,200.78,43.71861452]
[1756712041928,5.81930752,200.86,200.8,5.81930752]
[1756712042226,0.1,200.88,200.83,5.81930752]
[1756712042431,0.1,200.88,200.84,40.36]
[1756712042738,0.1,200.88,200.85,5.81930752]
[1756712042958,0.1,200.88,200.84,40.36]
[1756712043112,0.1,200.88,200.84,45.42181104]
[1756712043448,0.1,200.88,200.86,5.81930752]
[1756712043745,0.1,200.88,200.86,0.14216157]
[1756712043912,0.1,200.88,200.87,5.81930752]
[1756712044112,0.1,200.88,200.87,26.0]
[1756712044318,5.81930752,200.94,200.87,31.96146909]
[1756712044628,5.81930752,200.94,200.88,46.15930752]
[1756712045542,4.97438193,201.03,200.89,23.24177752]
[1756712045841,26.0,201.04,200.91,5.81930752]
[1756712046023,26.0,201.04,200.92,40.34]
[1756712046222,5.81930752,200.99,200.92,40.34]
[1756712046423,4.97415876,201.04,200.92,46.15930752]
[1756712046926,2.60184508,201.06,200.93,5.81930752]
[1756712047112,4.97339235,201.07,200.93,13.59559401]
[1756712047310,4.97314501,201.08,200.95,4.97636227]
[1756712047618,5.81930752,200.99,200.95,4.97636227]
[1756712047945,5.81930752,200.99,200.96,40.32]
[1756712048114,5.81930752,201.0,200.96,40.32]
[1756712048314,5.81930752,201.0,200.98,4.97561946]
[1756712048619,5.81930752,200.99,200.97,5.819308]
[1756712048819,26.0,201.07,200.98,40.3]
[1756712049018,26.0,201.07,200.94,4.97660993]
[1756712049228,26.0,201.07,200.95,40.3]
[1756712049430,13.59559401,201.06,200.92,4.97687169]
[1756712049638,5.81930752,200.97,200.96,40.3]
[1756712049839,5.81930752,200.98,200.96,40.3]
[1756712050015,26.0,201.06,200.96,40.3]
[1756712050417,5.81930752,201.0,200.97,4.97586704]
[1756712050642,26.0,201.06,200.97,4.97586704]
[1756712050828,0.1,201.09,200.97,17.41553465]
[1756712051157,5.81930752,201.03,200.97,23.23484217]
[1756712051316,5.81930752,201.02,200.97,23.23484217]
[1756712051516,5.81930752,200.99,200.86,13.59559401]
[1756712051717,5.81930752,200.99,200.93,5.81930752]
[1756712052022,26.0,201.05,200.94,40.42]
[1756712052225,13.59559401,201.05,200.89,5.81930752]
[1756712052531,5.81930752,201.0,200.9,42.79760079]
[1756712052846,26.0,201.01,200.9,42.79760079]
[1756712053055,0.1,201.09,200.93,5.81930752]
[1756712053236,5.81930752,201.0,200.95,5.81930752]
[1756712053544,5.81930752,201.02,200.96,42.23930752]
[1756712053721,5.81930752,201.02,200.96,36.42]
[1756712053920,0.1,201.09,200.98,5.81930752]
[1756712054119,0.1,201.09,200.99,5.81930752]
[1756712054321,5.81930752,201.05,201.0,4.97512437]
[1756712054646,0.1,201.09,201.01,40.42]
[1756712054953,0.1,201.09,201.01,46.23930752]
[1756712055148,0.1,201.09,201.01,40.42]
[1756712055461,5.81930752,201.07,201.02,40.4]
[1756712055626,0.1,201.09,201.02,40.4]
[1756712055953,5.81930752,201.07,201.02,46.219307]
[1756712056124,0.1,201.09,201.02,46.219307]
[1756712056326,5.81930752,201.08,201.02,11.63861452]
[1756712056526,0.1,201.09,201.03,4.97438193]
[1756712056734,5.81930752,201.08,201.03,4.97438193]
[1756712056932,0.1,201.09,201.03,17.41033676]
[1756712057140,5.81930752,201.07,201.03,17.41033676]
[1756712057341,0.1,201.09,201.04,40.4]
[1756712058343,5.81930752,201.08,201.04,40.4]
[1756712058668,0.1,201.09,201.05,4.97388709]
[1756712058965,0.1,201.09,201.05,23.22791234]
[1756712059272,0.1,201.09,201.05,17.40860482]
[1756712059766,4.96966199,201.23,201.09,0.14216157]
[1756712060063,5.81930752,201.15,201.1,40.36]
[1756712060265,2.59866555,201.29,201.1,40.36]
[1756712060441,10.78948552,201.36,201.19,5.81930752]
[1756712060642,10.78948552,201.36,201.15,13.73775558]
[1756712060643,10.78948552,201.36,201.21,4.96993191]
[1756712060866,31.81930752,201.36,201.22,40.48]
[1756712061072,5.81930752,201.25,201.22,40.48]
[1756712061363,5.81930752,201.36,201.23,40.46]
[1756712061838,5.81930752,201.36,201.21,4.96993191]
[1756712062044,5.81930752,201.25,201.24,40.46]
[1756712062362,26.0,201.37,201.24,40.46]
[1756712062556,5.81930752,201.36,201.24,40.46]
[1756712062744,5.81930752,201.28,201.25,4.96894409]
[1756712062958,10.78560264,201.36,201.26,40.5]
[1756712063149,26.0,201.4,201.26,40.5]
[1756712063348,7.56158395,201.43,201.26,46.31930752]
[1756712063548,4.96451057,201.43,201.26,46.31930752]
[1756712063862,4.96451057,201.43,201.26,40.5]
[1756712064054,4.96451057,201.43,201.27,5.81930752]
[1756712064263,2.59673955,201.48,201.28,40.48]
[1756712064449,13.3793212,201.48,201.32,5.81930752]
[1756712064649,5.81930752,201.48,201.33,4.96696965]
[1756712065179,27.53302518,201.51,201.34,40.48]
[1756712065350,5.81930752,201.41,201.35,0.14216157]
[1756712065561,20.0,201.58,201.35,26.14216157]
[1756712065869,20.0,201.58,201.33,17.38439377]
[1756712065870,5.81930752,201.48,201.36,40.54]
[1756712066071,20.0,201.58,201.37,5.81930752]
[1756712066276,5.81930752,201.48,201.38,40.6]
[1756712066479,18.89938694,201.59,201.35,0.14216157]
[1756712066653,26.0,201.55,201.37,0.14216157]
[1756712066974,5.81930752,201.48,201.33,26.0]
[1756712067164,5.81930752,201.48,201.31,35.96216157]
[1756712067345,5.81930752,201.48,201.32,45.78698208]
[1756712067546,5.81930752,201.39,201.33,5.81930752]
[1756712067774,5.81930752,201.4,201.35,5.81930752]
[1756712067956,5.81930752,201.48,201.32,17.385023]
[1756712068151,5.81930752,201.37,201.32,4.96698208]
[1756712068351,13.59559401,201.46,201.31,35.82]
[1756712068563,5.81930752,201.34,201.33,40.88]
[1756712068777,4.96510602,201.41,201.33,40.88]
[1756712068954,5.81930752,201.37,201.33,45.84688074]
[1756712069158,26.0,201.45,201.34,40.86]
[1756712069356,5.81930752,201.35,201.34,40.86]
[1756712069654,4.96376451,201.46,201.34,46.67930752]
[1756712069965,5.81930752,201.48,201.36,5.81930752]
[1756712070158,5.81930752,201.44,201.36,0.14216157]
[1756712070473,26.0,201.53,201.37,40.88]
[1756712070678,5.81930752,201.38,201.31,53.20602604]
[1756712070877,5.81930752,201.38,201.33,4.96696965]
[1756712071053,4.96356735,201.47,201.33,23.20370129]
[1756712071369,5.81930752,201.41,201.35,5.96146909]
[1756712071754,5.81930752,201.39,201.33,17.38439377]
[1756712071971,5.81930752,201.48,201.36,40.86]
[1756712072172,5.81930752,201.37,201.33,4.96696965]
[1756712072379,5.81930752,201.34,201.31,35.82]
[1756712072683,5.81930752,201.32,201.31,35.82]
[1756712072855,5.81930752,201.32,201.16,20.0]
[1756712072856,5.81930752,201.32,201.3,40.86]
[1756712073052,4.96548984,201.39,201.3,40.86]
[1756712073251,12.41346,201.51,201.31,5.81930752]
[1756712073467,4.96253287,201.51,201.35,5.81930752]
[1756712073876,4.96253287,201.51,201.36,41.18]
[1756712074177,5.81930752,201.41,201.36,41.18]
[1756712074372,5.81930752,201.41,201.36,5.81930752]
[1756712074572,5.81930752,201.41,201.37,41.16]
[1756712074758,5.81930752,201.38,201.32,4.96721637]
[1756712074952,4.96351814,201.47,201.34,5.81930752]
[1756712075152,4.96339431,201.48,201.32,17.38525729]
[1756712075352,26.0,201.44,201.31,5.46731743]
[1756712075566,23.1908813,201.48,201.31,5.46731743]
[1756712075567,5.81930752,201.37,201.32,41.18]
[1756712075768,23.1908813,201.48,201.32,41.18]
[1756712075970,10.78270183,201.48,201.34,5.81930752]
[1756712076177,5.81930752,201.39,201.34,5.81930752]
[1756712076558,5.81930752,201.39,201.32,41.18]